fUSD/lending_fUSD_20250213
["ID","MTS","AMOUNT","RATE_DAILY","PERIOD"]
[352921077,1739425838096,-45684.3752779,0.000164,2]
[352921078,1739425838105,-150.76613659,0.000164,2]
[352921079,1739425838115,-1000.0,0.00016425,2]
[352921080,1739425838124,-2538.17369548,0.00016427,2]
[352921081,1739425838134,-225.2088067,0.00016427,2]
[352921082,1739425838144,-2650.9912197,0.00016427,2]
[352921083,1739425838154,-22483.48222505,0.00016428,2]
[352921084,1739425838165,-1795.87219063,0.00016428,2]
[352921085,1739425838195,-10704.0354261,0.00016428,2]
[352921086,1739425838206,-622.7692827,0.00016428,2]
[352921122,1739425840053,-6664.5727,0.00016428,2]
[352921123,1739425840111,-2112.20324005,0.00016428,2]
[352921124,1739425840124,-625.34,0.00016428,2]
[352921125,1739425840137,-10506.26849954,0.00016428,2]
[352921126,1739425840228,-259.71546597,0.00016428,2]
[352921127,1739425840397,-113742.08885297,0.00016428,2]
[352921128,1739425840456,-39567.4116,0.00016428,2]
[352921129,1739425840516,-4565.74352778,0.00016428,2]
[352921134,1739425842994,-184501.91176262,0.00016428,2]
[352921135,1739425843050,-7045.7934393,0.00016428,2]
[352921136,1739425843110,-1166.70755366,0.00016428,2]
[352921137,1739425843125,-1072.30023744,0.00016428,2]
[352921138,1739425843138,-1817.67063,0.00016428,2]
[352921139,1739425843151,-1765.7713395,0.00016428,2]
[352921140,1739425843308,-7188.22166569,0.00016428,2]
[352921141,1739425843321,-203.23823743,0.00016428,2]
[352921142,1739425843333,-310.79835533,0.00016428,2]
[352921143,1739425843343,-156.46800722,0.0001643,2]
[352921144,1739425843354,-3657.53881218,0.0001643,2]
[352921145,1739425843365,-755.0,0.00016438,2]
[352921146,1739425843381,-1000.0,0.00016438,2]
[352921147,1739425843392,-1000.0,0.00016438,2]
[352921149,1739425843402,-1000.0,0.00016438,2]
[352921150,1739425843412,-1000.0,0.00016438,2]
[352921151,1739425843424,-1000.0,0.00016438,2]
[352921152,1739425843434,-1000.0,0.00016438,2]
[352921153,1739425843444,-1000.0,0.00016438,2]
[352921154,1739425843454,-1000.0,0.00016438,2]
[352921155,1739425843464,-1000.0,0.00016438,2]
[352921156,1739425843474,-1000.0,0.00016438,2]
[352921157,1739425843484,-501.72814391,0.00016438,2]
[352921158,1739425843494,-500.0,0.00016438,2]
[352921159,1739425843504,-500.0,0.00016438,2]
[352921160,1739425843514,-508.60638637,0.00016438,2]
[352921161,1739425843524,-500.0,0.00016438,2]
[352921162,1739425843534,-200.0,0.00016438,2]
[352921163,1739425843544,-500.0,0.00016438,2]
[352921164,1739425843554,-2066.506559,0.00016438,2]
[352921165,1739425843564,-500.0,0.00016438,2]
[352921166,1739425843574,-500.0,0.00016438,2]
[352921167,1739425843583,-500.0,0.00016438,2]
[352921168,1739425843593,-163.149451,0.00016438,2]
[352921169,1739425843602,-500.0,0.00016438,2]
[352921170,1739425843612,-506.17497345,0.00016438,2]
[352921171,1739425843622,-155.637992,0.00016438,2]
[352921172,1739425843634,-500.0,0.00016438,2]
[352921173,1739425843645,-1044.71,0.00016438,2]
[352921174,1739425843655,-500.0,0.00016438,2]
[352921175,1739425843665,-1043.92,0.00016438,2]
[352921176,1739425843676,-500.0,0.00016438,2]
[352921177,1739425843686,-2030.291402,0.00016438,2]
[352921178,1739425843696,-500.0,0.00016438,2]
[352921179,1739425843707,-500.0,0.00016438,2]
[352921180,1739425843717,-500.0,0.00016438,2]
[352921181,1739425843726,-521.88424683,0.00016438,2]
[352921182,1739425843969,-500.0,0.00016438,2]
[352921183,1739425844022,-500.0,0.00016438,2]
[352921184,1739425844033,-500.0,0.00016438,2]
[352921185,1739425844043,-1120.64,0.00016438,2]
[352921186,1739425844052,-500.0,0.00016438,2]
[352921187,1739425844062,-500.0,0.00016438,2]
[352921188,1739425844071,-500.0,0.00016438,2]
[352921189,1739425844081,-582.69,0.00016438,2]
[352921190,1739425844091,-960.42,0.00016438,2]
[352921191,1739425844100,-500.0,0.00016438,2]
[352921192,1739425844109,-895.92,0.00016438,2]
[352921193,1739425844120,-713.26,0.00016438,2]
[352921194,1739425844130,-500.0,0.00016438,2]
[352921195,1739425844140,-645.14,0.00016438,2]
[352921196,1739425844150,-504.3322542,0.00016438,2]
[352921197,1739425844159,-576.95,0.00016438,2]
[352921198,1739425844169,-500.0,0.00016438,2]
[352921199,1739425844179,-500.0,0.00016438,2]
[352921200,1739425844188,-404.1829961,0.00016438,2]
[352921201,1739425844199,-505.45602444,0.00016438,2]
[352921202,1739425844208,-500.0,0.00016438,2]
[352921203,1739425844218,-505.98344318,0.00016438,2]
[352921204,1739425844228,-500.0,0.00016438,2]
[352921205,1739425844242,-500.0,0.00016438,2]
[352921206,1739425844254,-500.0,0.00016438,2]
[352921207,1739425844264,-500.0,0.00016438,2]
[352921208,1739425844274,-500.0,0.00016438,2]
[352921209,1739425844285,-500.0,0.00016438,2]
[352921210,1739425844294,-500.0,0.00016438,2]
[352921211,1739425844304,-507.11890795,0.00016438,2]
[352921212,1739425844314,-503.55620002,0.00016438,2]
[352921213,1739425844330,-500.0,0.00016438,2]
[352921214,1739425844340,-500.0,0.00016438,2]
[352921215,1739425844349,-500.0,0.00016438,2]
[352921216,1739425844359,-500.0,0.00016438,2]
[352921217,1739425844369,-646.23,0.00016438,2]
[352921218,1739425844378,-506.20773277,0.00016438,2]
[352921219,1739425844388,-500.0,0.00016438,2]
[352921220,1739425844397,-500.0,0.00016438,2]
[352921221,1739425844407,-500.0,0.00016438,2]
[352921222,1739425844417,-500.0,0.00016438,2]
[352921223,1739425844427,-500.0,0.00016438,2]
[352921224,1739425844436,-505.03281762,0.00016438,2]
[352921225,1739425844445,-936.08,0.00016438,2]
[352921226,1739425844455,-500.0,0.00016438,2]
[352921227,1739425844464,-500.0,0.00016438,2]
[352921228,1739425844474,-501.73050619,0.00016438,2]
[352921229,1739425844484,-500.0,0.00016438,2]
[352921230,1739425844496,-505.63642195,0.00016438,2]
[352921231,1739425844506,-501.86582334,0.00016438,2]
[352921232,1739425844515,-500.0,0.00016438,2]
[352921233,1739425844525,-921.95,0.00016438,2]
[352921234,1739425844537,-500.0,0.00016438,2]
[352921235,1739425844549,-1088.53,0.00016438,2]
[352921236,1739425844559,-761.03,0.00016438,2]
[352921237,1739425844568,-503.09632379,0.00016438,2]
[352921238,1739425844579,-500.0,0.00016438,2]
[352921239,1739425844588,-500.0,0.00016438,2]
[352921240,1739425844598,-500.0,0.00016438,2]
[352921241,1739425844608,-500.0,0.00016438,2]
[352921242,1739425844620,-500.0,0.00016438,2]
[352921243,1739425844630,-500.0,0.00016438,2]
[352921244,1739425844640,-506.53681326,0.00016438,2]
[352921245,1739425844650,-500.0,0.00016438,2]
[352921246,1739425844661,-500.0,0.00016438,2]
[352921247,1739425844673,-500.0,0.00016438,2]
[352921248,1739425844685,-500.0,0.00016438,2]
[352921249,1739425844694,-500.0,0.00016438,2]
[352921250,1739425844705,-503.18298192,0.00016438,2]
[352921251,1739425844714,-513.95,0.00016438,2]
[352921252,1739425844724,-500.0,0.00016438,2]
[352921253,1739425844734,-847.04,0.00016438,2]
[352921254,1739425844744,-865.93,0.00016438,2]
[352921255,1739425844754,-500.0,0.00016438,2]
[352921256,1739425844764,-500.0,0.00016438,2]
[352921257,1739425844773,-500.0,0.00016438,2]
[352921258,1739425844783,-500.0,0.00016438,2]
[352921259,1739425844793,-500.0,0.00016438,2]
[352921260,1739425844802,-1200.0,0.00016438,2]
[352921261,1739425844812,-500.0,0.00016438,2]
[352921262,1739425844822,-505.01821746,0.00016438,2]
[352921263,1739425844832,-589.48,0.00016438,2]
[352921264,1739425844842,-500.0,0.00016438,2]
[352921265,1739425844851,-500.0,0.00016438,2]
[352921266,1739425844861,-934.04,0.00016438,2]
[352921267,1739425844870,-500.0,0.00016438,2]
[352921268,1739425844880,-500.0,0.00016438,2]
[352921269,1739425844889,-500.0,0.00016438,2]
[352921270,1739425844899,-500.0,0.00016438,2]
[352921271,1739425844916,-856.23,0.00016438,2]
[352921272,1739425844928,-500.0,0.00016438,2]
[352921273,1739425844938,-500.0,0.00016438,2]
[352921274,1739425844948,-1391.72,0.00016438,2]
[352921275,1739425844957,-1136.86,0.00016438,2]
[352921276,1739425844967,-637.83,0.00016438,2]
[352921277,1739425844977,-500.0,0.00016438,2]
[352921278,1739425844989,-500.0,0.00016438,2]
[352921279,1739425845000,-500.0,0.00016438,2]
[352921280,1739425845011,-500.0,0.00016438,2]
[352921281,1739425845020,-1174.76,0.00016438,2]
[352921282,1739425845030,-500.0,0.00016438,2]
[352921283,1739425845040,-500.0,0.00016438,2]
[352921284,1739425845050,-860.73,0.00016438,2]
[352921285,1739425845060,-500.0,0.00016438,2]
[352921286,1739425845069,-1262.01,0.00016438,2]
[352921287,1739425845079,-2117.3,0.00016438,2]
[352921288,1739425845090,-500.0,0.00016438,2]
[352921289,1739425845099,-500.0,0.00016438,2]
[352921290,1739425845108,-500.0,0.00016438,2]
[352921291,1739425845118,-200.0,0.00016438,2]
[352921292,1739425845127,-500.0,0.00016438,2]
[352921293,1739425845136,-1044.16,0.00016438,2]
[352921294,1739425845146,-535.63,0.00016438,2]
[352921295,1739425845155,-1817.12,0.00016438,2]
[352921296,1739425845164,-1115.5583034,0.00016438,2]
[352921297,1739425845607,-26.4616966,0.00016438,2]
[352921298,1739425845617,-500.0,0.00016438,2]
[352921299,1739425845627,-1011.19,0.00016438,2]
[352921300,1739425845636,-500.0,0.00016438,2]
[352921301,1739425845646,-1035.93,0.00016438,2]
[352921302,1739425845655,-1005.76322634,0.00016438,2]
[352921303,1739425845672,-1704.81677366,0.00016438,2]
[352921304,1739425845682,-500.0,0.00016438,2]
[352921305,1739425845691,-274.28339342,0.00016438,2]
[352921311,1739425847227,-79.4759732,0.0001616,2]
[352921312,1739425847243,-100.8260268,0.0001616,2]
[352921313,1739425847254,-167.582,0.0001616,2]
[352921314,1739425847265,-246.99798327,0.00016438,2]
[352921315,1739425847274,-508.08538795,0.00016438,2]
[352921316,1739425847286,-224.76969398,0.00016438,2]
[352921317,1739425847299,-269.86379914,0.00016438,2]
[352921318,1739425848344,2500.0,8.851e-05,2]
[352921323,1739425870710,463.669748,0.0002,120]
[352921324,1739425870789,41339.8408,8.973e-05,2]
[352921325,1739425875078,3465.4807,8.836e-05,2]
[352921326,1739425915301,3424.1721,8.836e-05,2]
[352921327,1739425981343,2152.2476,8.836e-05,2]
[352921328,1739426019268,275.57,0.00010137,2]
[352921329,1739426159016,305.4244,8.836e-05,2]
[352921333,1739426183578,2009.4958,8.699e-05,2]
[352921334,1739426411246,500.0,0.0002,120]
[352921335,1739426460784,1423.3928,8.836e-05,2]
[352921343,1739426583049,5243.2,0.00020768,60]
[352921344,1739426668240,172.5,0.00011699,2]
[352921346,1739426830116,-154.1794287,0.00012871,2]
[352921347,1739426839178,-186.53620146,0.00012871,2]
[352921348,1739426853103,-343.11436984,0.00012871,2]
[352921349,1739426853126,-150.0,0.00013755,2]
[352921350,1739426853148,-150.0,0.00014158,2]
[352921351,1739426853171,-150.0,0.00014325,2]
[352921352,1739426853193,-772.26056326,0.00014639,2]
[352921353,1739426945240,-23900.0,0.00014601,2]
[352921354,1739426945262,-230.18833769,0.00014621,2]
[352921355,1739426945284,-150.0,0.0001463,2]
[352921356,1739426945307,-620.31943674,0.00014639,2]
[352921357,1739426945329,-1000.0,0.00014656,2]
[352921358,1739426945352,-150.0,0.00014662,2]
[352921359,1739426945374,-230.18833768,0.00014674,2]
[352921360,1739426945396,-200.0,0.00014721,2]
[352921361,1739426945417,-500.0,0.00014736,2]
[352921362,1739426945438,-150.0,0.00014774,2]
[352921363,1739426945471,-379.369064,0.00014788,2]
[352921364,1739426958107,-79.540936,0.00014788,2]
[352921365,1739426958133,-218.78975068,0.00014788,2]
[352921366,1739426958288,-281.21024932,0.00014788,2]
[352921367,1739426974093,-717.95,0.00014833,2]
[352921368,1739426974115,-150.68417396,0.00014848,2]
[352921373,1739427030978,280.04166131,8.699e-05,2]
[352921374,1739427031002,1470.40763869,8.699e-05,2]
[352921381,1739427032117,-49.31582604,0.00014848,2]
[352921382,1739427032127,-150.0,0.00014852,2]
[352921383,1739427032138,-165.07,0.00014856,2]
[352921384,1739427032149,-507.0,0.00014932,2]
[352921385,1739427032160,-683.83,0.00015135,2]
[352921386,1739427032171,-153.49414196,0.00015217,2]
[352921387,1739427032186,-16.34585804,0.00015217,2]
[352921388,1739427032197,-289.5970175,0.0001523,2]
[352921389,1739427032211,-102.5629825,0.0001523,2]
[352921390,1739427032222,-494.16,0.00015231,2]
[352921391,1739427032233,-493.6,0.00015232,2]
[352921392,1739427032243,-504.24,0.00015234,2]
[352921393,1739427032254,-498.76,0.00015237,2]
[352921394,1739427032266,-500.53,0.00015242,2]
[352921395,1739427032277,-508.23,0.00015251,2]
[352921396,1739427032287,-300.0,0.00015251,2]
[352921397,1739427032298,-505.44,0.00015266,2]
[352921398,1739427032308,-503.39,0.00015331,2]
[352921399,1739427032325,-400.0,0.000154,5]
[352921400,1739427032335,-507.18,0.00015409,2]
[352921401,1739427032346,-493.37,0.00015409,2]
[352921402,1739427032358,-497.19,0.00015409,2]
[352921403,1739427032368,-490.99,0.00015413,2]
[352921404,1739427032379,-509.39,0.00015419,2]
[352921405,1739427032388,-502.31,0.00015427,2]
[352921406,1739427032397,-154.7859175,0.0001544,2]
[352921407,1739427032416,-345.9840825,0.0001544,2]
[352921408,1739427032425,-503.38,0.00015466,2]
[352921409,1739427032435,-492.56648881,0.00015474,3]
[352921410,1739427032447,-1797.47245272,0.00015474,3]
[352921411,1739427032457,-2290.03894152,0.00015474,3]
[352921412,1739427032466,-1786.0,0.00015482,2]
[352921413,1739427032476,-2014.43312349,0.00015482,2]
[352921414,1739427032519,-774.90712446,0.00015482,2]
[352921415,1739427032545,-149.63075205,0.00015482,2]
[352921416,1739427032556,-520.33,0.000155,2]
[352921417,1739427032570,-335.23924795,0.000155,2]
[352921418,1739427032582,-158.06075205,0.000155,2]
[352921419,1739427032596,-493.98,0.000155,2]
[352921420,1739427032606,-499.72,0.000155,2]
[352921421,1739427032617,-416.2451991,0.000155,2]
[352921422,1739427032634,-92.3948009,0.000155,2]
[352921423,1739427032645,-800.0,0.000155,5]
[352921424,1739427032656,-775.49,0.00015541,2]
[352921425,1739427032665,-775.49,0.00015541,2]
[352921426,1739427032676,-775.49,0.00015541,2]
[352921427,1739427032686,-775.49,0.00015541,2]
[352921428,1739427032696,-1200.0,0.000156,5]
[352921429,1739427032706,-1962.78066715,0.000156,3]
[352921430,1739427032742,-152.21933285,0.000156,3]
[352921431,1739427032752,-12803.37632134,0.00015607,5]
[352921432,1739427032761,-800.0,0.00015651,2]
[352921433,1739427032771,-1000.0,0.00015651,2]
[352921434,1739427032782,-12803.37632134,0.00015653,5]
[352921435,1739427032792,-12803.37632134,0.00015672,5]
[352921436,1739427032803,-150.57,0.00015678,2]
[352921437,1739427032816,-150.0,0.00015678,2]
[352921438,1739427032827,-150.0,0.00015678,2]
[352921439,1739427032836,-150.0,0.00015678,2]
[352921440,1739427032846,-150.0,0.00015678,2]
[352921441,1739427032856,-150.0,0.00015678,2]
[352921442,1739427032865,-150.0,0.00015678,2]
[352921443,1739427032875,-4917.58892112,0.00015693,5]
[352921471,1739427038561,-4272.98103982,0.00015693,5]
[352921472,1739427038616,-1528.18942139,0.00015693,5]
[352921473,1739427038638,-2084.61693901,0.00015693,5]
[352921475,1739427038648,-1600.0,0.000157,5]
[352921477,1739427038657,-2000.0,0.000158,5]
[352921479,1739427038667,-400.0,0.000159,5]
[352921480,1739427038678,-151.83,0.00015909,2]
[352921481,1739427038687,-775.49,0.00015945,2]
[352921482,1739427038697,-1000.0,0.00016,2]
[352921483,1739427038706,-684.685,0.00016083,2]
[352921484,1739427038716,-150.0,0.00016083,2]
[352921485,1739427038725,-992.57806099,0.00016099,2]
[352921486,1739427038749,-101.54924351,0.00016099,2]
[352921487,1739427038759,-509.34,0.00016099,2]
[352921489,1739427038771,-372.4436079,0.00016109,2]
[352921490,1739427038780,-279.794,0.0001616,2]
[352921491,1739427038789,-150.0,0.0001616,2]
[352921492,1739427038799,-154.95,0.0001616,2]
[352921493,1739427038807,-205.904,0.0001616,2]
[352921494,1739427038818,-253.003,0.0001616,2]
[352921495,1739427038827,-202.09,0.0001616,2]
[352921496,1739427038836,-154.87,0.0001616,2]
[352921497,1739427038845,-2023.0,0.0001616,2]
[352921498,1739427038854,-150.0,0.00016176,2]
[352921499,1739427038864,-1006.03678974,0.0001618,2]
[352921500,1739427038873,-150.0,0.00016206,2]
[352921501,1739427038882,-1000.0,0.00016208,2]
[352921502,1739427038891,-170.39681026,0.00016268,2]
[352921503,1739427038900,-240.74185,0.0001627,2]
[352921504,1739427038910,-150.76613659,0.00016279,2]
[352921505,1739427038920,-150.0,0.00016283,2]
[352921506,1739427038929,-272.63220691,0.00016283,2]
[352921507,1739427038939,-2055.112,0.00016289,2]
[352921508,1739427038948,-171.503,0.00016289,2]
[352921509,1739427038957,-150.0,0.00016301,2]
[352921510,1739427038967,-150.0,0.00016314,2]
[352921511,1739427038976,-1000.0,0.00016321,2]
[352921512,1739427038986,-150.0,0.00016327,2]
[352921513,1739427038995,-150.0,0.00016332,2]
[352921514,1739427039004,-150.0,0.00016348,2]
[352921515,1739427039013,-150.0,0.0001635,2]
[352921516,1739427039023,-150.0,0.00016352,2]
[352921517,1739427039032,-150.0,0.0001636,2]
[352921518,1739427039041,-964.67177961,0.0001636,2]
[352921519,1739427039053,-66675.16119939,0.0001636,2]
[352921520,1739427039065,-1143.8779991,0.0001636,2]
[352921521,1739427039075,-2456.56110636,0.00016363,2]
[352921522,1739427039084,-2456.56110636,0.00016369,2]
[352921523,1739427039093,-2456.56110636,0.0001637,2]
[352921524,1739427039102,-10828.82300491,0.0001637,2]
[352921530,1739427040195,-3910.54363329,0.0001637,2]
[352921531,1739427040205,-203.23823743,0.0001637,2]
[352921532,1739427040216,-150.0,0.00016372,2]
[352921533,1739427040226,-153.87898743,0.00016373,2]
[352921534,1739427040235,-122.62367588,0.00016373,2]
[352921535,1739427040255,-377.84329773,0.00016373,2]
[352921536,1739427040265,-112.11406877,0.00016373,2]
[352921537,1739427040538,-387.88593123,0.00016373,2]
[352921538,1739427040548,-2000.0,0.00016379,2]
[352921539,1739427040557,-2000.0,0.00016379,2]
[352921540,1739427040568,-2000.0,0.00016379,2]
[352921541,1739427040578,-500.0,0.00016379,2]
[352921542,1739427040588,-300.0,0.00016379,2]
[352921543,1739427040599,-300.0,0.00016379,2]
[352921544,1739427040609,-999.0,0.00016379,2]
[352921545,1739427040618,-685.0,0.0001638,2]
[352921546,1739427040627,-3064.88246088,0.0001638,3]
[352921547,1739427040637,-83172.80153576,0.0001638,2]
[352921548,1739427040648,-39857.56944935,0.0001638,2]
[352921549,1739427040665,-775.35077225,0.0001638,2]
[352921550,1739427040682,-2773.12461411,0.0001638,2]
[352921551,1739427040693,-492.03983088,0.0001638,2]
[352921562,1739427043199,-51161.37330821,0.0001638,2]
[352921565,1739427043311,-7720.0,0.0001638,2]
[352921566,1739427043424,-756.42903777,0.0001638,2]
[352921567,1739427043437,-467.84499314,0.0001638,2]
[352921568,1739427043449,-1573.39282752,0.0001638,2]
[352921569,1739427043481,-48696.36206874,0.0001638,2]
[352921581,1739427046246,-2502.5100527,0.0001638,2]
[352921582,1739427046258,-2087.54116,0.0001638,2]
[352921583,1739427046371,-909.34146577,0.0001638,2]
[352921584,1739427046383,-3641.06954101,0.0001638,2]
[352921585,1739427069208,15130.1796,8.836e-05,2]
[352921587,1739427103616,1086.914287,0.00011169,4]
[352921588,1739427121161,5000.0,8.973e-05,2]
[352921589,1739427136348,38487.0012,8.973e-05,2]
[352921590,1739427145336,842.5485,8.256e-05,2]
[352921591,1739427182221,12898.5662,8.836e-05,2]
[352921592,1739427204706,2500.0,8.851e-05,2]
[352921593,1739427219829,5000.0,8.973e-05,2]
[352921594,1739427256264,2724.8944,8.256e-05,2]
[352921595,1739427288305,164.52,0.00010137,2]
[352921596,1739427340491,1486.4417,8.836e-05,2]
[352921597,1739427408133,2500.0,8.851e-05,2]
[352921598,1739427443946,5000.0,8.973e-05,2]
[352921601,1739427908711,500.0,0.0001,2]
[352921602,1739427908736,500.0,0.0001,2]
[352921603,1739427908759,500.0,0.0001,2]
[352921604,1739427908783,500.0,0.0001,2]
[352921605,1739427908807,500.0,0.0001,2]
[352921606,1739427908830,500.0,0.0001,2]
[352921607,1739427908856,500.0,0.0001,2]
[352921608,1739427908880,500.0,0.0001,2]
[352921609,1739427908906,500.0,0.0001,2]
[352921610,1739427908929,200.0,0.0001,2]
[352921611,1739427908955,241464.31402907,0.0001,2]
[352921612,1739427932277,1000.0,8.851e-05,2]
[352921613,1739427954145,-550.0,0.00013,2]
[352921614,1739427954169,-48.89951056,0.00013202,2]
[352921616,1739427961146,500.0,8.851e-05,2]
[352921617,1739427964479,344.1068,8.851e-05,2]
[352921618,1739427978591,28911.54355115,0.00011,2]
[352921619,1739428017386,906.1218,8.973e-05,2]
[352921620,1739428050076,-101.10048944,0.00013202,2]
[352921621,1739428050099,-419.60436483,0.00013403,2]
[352921622,1739428051088,-268.88563517,0.00013403,2]
[352921623,1739428051110,-150.0,0.000143,2]
[352921624,1739428051132,-178.80334087,0.00014522,2]
[352921625,1739428072332,479.6934,8.851e-05,2]
[352921626,1739428078952,58703.94771647,0.0001,2]
[352921631,1739428117219,928.5735,8.851e-05,2]
[352921638,1739428146195,-218.0,0.0001258,2]
[352921639,1739428146216,-218.0,0.0001279,2]
[352921640,1739428146236,-218.0,0.00013,2]
[352921641,1739428146256,-218.0,0.0001321,2]
[352921642,1739428146276,-218.0,0.0001342,2]
[352921643,1739428146296,-218.0,0.0001363,2]
[352921644,1739428146317,-218.0,0.0001384,2]
[352921645,1739428146337,-218.0,0.0001405,2]
[352921646,1739428146357,-218.0,0.0001426,2]
[352921647,1739428146380,-218.0,0.0001446,2]
[352921648,1739428146403,-150.0,0.00014522,2]
[352921649,1739428146424,-218.0,0.0001467,2]
[352921650,1739428146446,-66.15415298,0.00014742,2]
[352921651,1739428148096,-83.84584702,0.00014742,2]
[352921658,1739428222953,151.7,0.00011492,2]
[352921662,1739428232525,-218.0,0.0001488,2]
[352921663,1739428232534,-696.29,0.00014962,2]
[352921664,1739428232544,-600.0,0.00015,2]
[352921665,1739428232553,-218.0,0.0001509,2]
[352921666,1739428232562,-300.0,0.00015227,2]
[352921667,1739428232572,-1000.0,0.00015228,2]
[352921668,1739428232581,-535.1529,0.00015228,2]
[352921669,1739428232592,-4132.90258031,0.00015228,2]
[352921670,1739428232861,-1032.43087862,0.00015228,2]
[352921683,1739428238261,-150.76613659,0.00015299,2]
[352921684,1739428238273,-787.83190022,0.00015299,2]
[352921685,1739428238285,-238.55318102,0.00015299,2]
[352921686,1739428238296,-218.0,0.000153,2]
[352921687,1739428238306,-787.83190022,0.000153,2]
[352921688,1739428238316,-787.83190022,0.00015301,2]
[352921689,1739428238326,-787.83190022,0.00015303,2]
[352921690,1739428238335,-787.83190022,0.00015304,2]
[352921691,1739428238345,-787.83190022,0.00015305,2]
[352921692,1739428238354,-787.83190022,0.00015306,2]
[352921693,1739428238364,-787.83190022,0.00015308,2]
[352921694,1739428238374,-150.0,0.00015308,2]
[352921695,1739428238383,-787.83190022,0.00015309,2]
[352921696,1739428238393,-489.54,0.0001531,2]
[352921697,1739428238403,-787.83190022,0.0001531,2]
[352921698,1739428238413,-1445.80738661,0.00015351,2]
[352921699,1739428238581,-758.87049337,0.00015351,2]
[352921700,1739428238591,-300.0,0.00015389,2]
[352921701,1739428238601,-430.25128808,0.00015389,2]
[352921702,1739428238611,-58490.2030278,0.0001539,2]
[352921703,1739428238623,-811.351313,0.0001539,2]
[352921705,1739428238777,-10991.17998013,0.0001539,2]
[352921706,1739428238790,-32467.16033716,0.0001539,2]
[352921707,1739428238802,-1436.56086492,0.0001539,2]
[352921708,1739428238813,-9260.05823244,0.0001539,2]
[352921709,1739428238834,-1072.35,0.0001539,2]
[352921710,1739428238846,-16131.68368021,0.0001539,2]
[352921712,1739428238857,-1137.16412592,0.0001539,2]
[352921732,1739428239069,-57.85609412,0.0001539,2]
[352921751,1739428240486,-1080.5154265,0.0001539,2]
[352921752,1739428240567,-32902.31564465,0.0001539,2]
[352921753,1739428240578,-785.83533901,0.0001539,2]
[352921754,1739428240692,-33315.72412235,0.0001539,2]
[352921755,1739428240705,-325.893,0.0001539,2]
[352921756,1739428240720,-10661.23488406,0.0001539,2]
[352921757,1739428240754,-619.9049794,0.0001539,2]
[352921762,1739428243284,-873.090994,0.0001539,2]
[352921763,1739428243295,-522.45,0.0001539,2]
[352921764,1739428243307,-854.55749319,0.0001539,2]
[352921765,1739428243318,-1721.2882405,0.0001539,2]
[352921766,1739428243459,-17519.22885053,0.0001539,2]
[352921767,1739428243471,-7920.32851445,0.0001539,2]
[352921768,1739428243483,-423.64773408,0.0001539,2]
[352921769,1739428243494,-296.13443335,0.0001539,2]
[352921770,1739428243505,-1973.4,0.0001539,2]
[352921771,1739428243540,-264.76451,0.0001539,2]
[352921772,1739428243551,-8183.03819307,0.0001539,2]
[352921773,1739428243563,-490.44403302,0.0001539,2]
[352921774,1739428243578,-2494.99999999,0.0001539,2]
[352921775,1739428243617,-22460.05586245,0.0001539,2]
[352921810,1739428246602,-39.21233368,0.0001539,2]
[352921819,1739428294152,41263.5559,8.836e-05,2]
[352921823,1739428585188,316.26,0.00010137,2]
[352921826,1739428798714,-171.17,0.00014458,2]
[352921827,1739428798744,-250.0,0.00014489,2]
[352921828,1739428798772,-150.0,0.00014518,2]
[352921829,1739428798802,-918.53,0.00014652,2]
[352921830,1739428801734,1000.0,0.0001455,2]